bitfinex/quotes_BTCUSD_20240717
["timestamp","ask_amount","ask_price","bid_price","bid_amount"]
[1721233565251,0.155113,64469.0,64465.0,0.06996071]
[1721233565464,0.155113,64469.0,64466.0,0.15438174]
[1721233565465,0.155117,64468.0,64466.0,0.15438174]
[1721233565682,0.310214,64472.0,64466.0,0.15438174]
[1721233565902,0.465354,64467.0,64466.0,0.15438174]
[1721233566102,1.085826,64467.0,64466.0,0.15438174]
[1721233566304,1.085826,64467.0,64466.0,0.16981991]
[1721233566924,1.185826,64467.0,64466.0,0.001]
[1721233567440,1.185826,64467.0,64466.0,0.002]
[1721233567441,1.196826,64467.0,64466.0,0.002]
[1721233567653,1.196826,64467.0,64466.0,0.15638174]
[1721233567921,0.310272,64460.0,64456.0,0.0821]
[1721233568069,0.155136,64460.0,64457.0,0.16921174]
[1721233568277,0.103,64467.0,64457.0,0.16921174]
[1721233568452,0.155137,64459.0,64457.0,0.16921174]
[1721233568858,0.011,64467.0,64457.0,0.16921174]
[1721233569084,0.011,64467.0,64464.0,0.15438174]
[1721233569085,0.008,64467.0,64464.0,0.15438174]
[1721233569321,0.008,64467.0,64466.0,0.38990174]
[1721233569508,0.003,64467.0,64466.0,1.01038374]
[1721233569712,0.39285,64494.0,64474.0,0.0621]
[1721233569713,0.31014,64487.0,64474.0,0.0621]
[1721233570047,0.00084,64494.0,64480.0,0.15438174]
[1721233570048,0.61813271,64481.0,64480.0,0.15438174]
[1721233570263,0.77542,64481.0,64480.0,0.15438174]
[1721233570688,0.465331,64470.0,64469.0,0.0832]
[1721233570877,0.465331,64470.0,64469.0,0.23758174]
[1721233571079,0.775552,64470.0,64469.0,0.15438174]
[1721233571739,1.085773,64470.0,64469.0,0.15438174]
[1721233572021,1.085773,64470.0,64449.0,0.15516]
[1721233572022,0.465418,64458.0,64457.0,0.01483]
[1721233572170,0.155139,64458.0,64457.0,0.15717574]
[1721233572347,0.155139,64458.0,64457.0,0.15438174]
[1721233572348,0.775697,64458.0,64457.0,0.15438174]
[1721233572744,1.085976,64458.0,64457.0,0.15438174]
[1721233573642,1.086976,64458.0,64457.0,0.16438174]
[1721233573854,1.185976,64458.0,64457.0,0.002]
[1721233574054,1.185976,64458.0,64441.0,0.002794]
[1721233574055,0.31032,64450.0,64441.0,0.002794]
[1721233574179,0.155178,64442.0,64441.0,0.002794]
[1721233574383,0.465534,64442.0,64441.0,0.002794]
[1721233574611,1.086246,64442.0,64441.0,0.002794]
[1721233574948,0.310316,64451.0,64423.0,0.0635]
[1721233574949,0.0626,64445.0,64423.0,0.0635]
[1721233575151,0.310438,64425.0,64424.0,0.002794]
[1721233575355,0.465657,64425.0,64424.0,0.19184514]
[1721233575486,1.086533,64425.0,64424.0,0.18905114]
[1721233575699,0.310373,64439.0,64410.0,0.0664]
[1721233575700,0.0631,64429.0,64410.0,0.0664]
[1721233575903,0.77624,64413.0,64410.0,0.0664]
[1721233576307,1.086736,64413.0,64410.0,0.0664]
[1721233576507,0.77624,64413.0,64411.0,0.002794]
[1721233576927,0.77624,64413.0,64412.0,0.17889254]
[1721233577132,0.77624,64413.0,64412.0,0.17989254]
[1721233577133,0.465744,64413.0,64412.0,0.17989254]
[1721233577533,0.392612,64431.0,64412.0,0.17989254]
[1721233577534,0.155237,64418.0,64412.0,0.17889254]
[1721233577762,0.310432,64427.0,64413.0,0.00589859]
[1721233577968,0.1654,64438.0,64423.0,0.15438174]
[1721233577969,0.1,64438.0,64423.0,0.15438174]
[1721233578331,0.46304871,64443.0,64439.0,0.0758]
[1721233578504,0.46304871,64443.0,64440.0,0.002794]
[1721233578803,0.465541,64441.0,64440.0,0.002794]
[1721233579003,0.465541,64441.0,64440.0,0.15717574]
[1721233579245,0.775902,64441.0,64440.0,0.20399931]
[1721233579459,1.086263,64441.0,64440.0,0.20399931]
[1721233579663,0.38945162,64455.0,64440.0,0.15438174]
[1721233579664,0.31032,64450.0,64440.0,0.15438174]
[1721233579876,0.00198183,64455.0,64441.0,0.15717574]
[1721233580075,0.310305,64453.0,64443.0,0.15438174]
[1721233580359,0.310305,64453.0,64446.0,0.002794]
[1721233580360,0.155155,64452.0,64446.0,0.002794]
[1721233580510,0.00198183,64455.0,64449.0,0.002794]
[1721233580511,0.465451,64454.0,64449.0,0.002794]
[1721233580737,0.465451,64454.0,64444.0,0.2783]
[1721233580738,0.155154,64452.0,64451.0,0.002794]
[1721233580938,0.155154,64452.0,64451.0,0.15717574]
[1721233581139,0.31227983,64455.0,64451.0,0.15438174]
[1721233581399,0.15515,64454.0,64452.0,0.15717574]
[1721233581543,0.155151,64453.0,64452.0,0.15717574]
[1721233581741,0.465454,64453.0,64452.0,0.15438174]
[1721233581925,0.155151,64453.0,64452.0,0.15438174]
[1721233582348,0.31227583,64455.0,64452.0,0.15438174]
[1721233582349,0.16812883,64455.0,64453.0,0.061]
[1721233582553,0.01298183,64455.0,64454.0,0.15717574]
[1721233582762,0.00198183,64455.0,64454.0,0.20911346]
[1721233583542,0.16312883,64455.0,64454.0,0.20911346]
[1721233583750,0.47342283,64455.0,64454.0,0.15438174]
[1721233583910,0.48442283,64455.0,64454.0,0.15538174]
[1721233584116,0.79471683,64455.0,64454.0,0.001]
[1721233584321,1.10501083,64455.0,64454.0,0.001]
[1721233584525,1.20501083,64455.0,64454.0,0.001]
[1721233584722,1.51530483,64455.0,64454.0,0.001]
[1721233585121,1.50930483,64455.0,64454.0,0.001]
[1721233585325,1.19901083,64455.0,64454.0,0.001]
[1721233585527,1.19901083,64455.0,64454.0,0.15538174]
[1721233585722,0.47342283,64455.0,64454.0,0.16991991]
[1721233586107,0.79771683,64455.0,64454.0,0.17091991]
[1721233586573,0.77771683,64455.0,64454.0,0.16991991]
[1721233586864,0.78771683,64455.0,64454.0,0.17091991]
[1721233587487,0.021,64455.0,64454.0,0.17191991]
[1721233587640,0.021,64455.0,64454.0,0.32706891]
[1721233587838,0.021,64455.0,64454.0,0.94766491]
[1721233588064,0.00084,64467.0,64462.0,0.155129]
[1721233588321,0.00084,64467.0,64464.0,0.15438174]
[1721233588711,0.310245,64465.0,64464.0,0.15438174]
[1721233588908,0.155122,64465.0,64464.0,0.15438174]
[1721233589566,0.155959,64467.0,64464.0,0.15438174]
[1721233589771,0.00184,64467.0,64464.0,0.15438174]
[1721233589970,0.00184,64467.0,64465.0,0.05311902]
[1721233590172,0.00184,64467.0,64466.0,0.15438174]
[1721233591404,0.00184,64467.0,64466.0,0.65240368]
[1721233591608,0.00184,64467.0,64466.0,1.32288568]
[1721233591844,0.00784,64467.0,64466.0,1.78492339]
[1721233592190,0.00784,64467.0,64466.0,1.87426773]
[1721233592487,0.00084,64467.0,64466.0,1.56092479]
[1721233592636,0.77321971,64481.0,64472.0,0.155105]
[1721233592637,0.155087,64480.0,64472.0,0.155105]
[1721233592839,0.155087,64480.0,64469.0,0.310222]
[1721233592840,0.155086,64481.0,64475.0,0.15438174]
[1721233593204,0.31016,64483.0,64475.0,0.15438174]
[1721233593539,0.04470501,64542.0,64470.0,0.310219]
[1721233593540,0.155044,64498.0,64489.0,0.155064]
[1721233593740,0.46304871,64497.0,64490.0,0.15438174]
[1721233593941,0.15114479,64504.0,64490.0,0.15438174]
[1721233593942,0.07717479,64496.0,64490.0,0.15438174]
[1721233594103,0.46518,64491.0,64490.0,0.15438174]
[1721233594310,0.07717479,64496.0,64484.0,0.15438174]
[1721233594517,0.155071,64487.0,64484.0,0.15438174]
[1721233594736,0.310126,64490.0,64485.0,0.03543817]
[1721233594935,0.07717479,64496.0,64486.0,0.15438174]
[1721233594936,0.77535,64487.0,64486.0,0.15438174]
[1721233595447,0.31009,64498.0,64486.0,0.15438174]
[1721233595448,0.1,64495.0,64486.0,0.15438174]
[1721233595648,0.155056,64493.0,64488.0,0.15438174]
[1721233596001,0.155893,64494.0,64489.0,0.03125567]
[1721233596202,0.155893,64494.0,64490.0,0.15438174]
[1721233596404,0.00084,64494.0,64490.0,0.15438174]
[1721233596607,0.155056,64493.0,64490.0,0.15438174]
[1721233596746,0.15506,64491.0,64490.0,0.15438174]
[1721233596950,0.15506,64491.0,64490.0,0.16981991]
[1721233597178,0.00284,64494.0,64490.0,0.16981991]
[1721233597659,0.155056,64493.0,64490.0,0.16981991]
[1721233597846,0.155059,64492.0,64490.0,0.16981991]
[1721233598054,0.310112,64493.0,64490.0,0.16981991]
[1721233598262,0.313948,64494.0,64491.0,0.01698199]
[1721233598490,0.155056,64493.0,64492.0,0.15438174]
[1721233598988,0.155894,64494.0,64492.0,0.15438174]
[1721233599198,0.161894,64494.0,64493.0,0.01713637]
[1721233599409,0.161894,64494.0,64493.0,0.17151811]
[1721233599622,0.155894,64494.0,64493.0,0.17151811]
[1721233599827,0.156894,64494.0,64493.0,0.17151811]
[1721233599961,0.00184,64494.0,64493.0,0.17151811]
[1721233600144,0.00084,64494.0,64493.0,0.17151811]
[1721233600345,0.00184,64494.0,64493.0,0.37151811]
[1721233600757,0.00784,64494.0,64493.0,1.14779511]
[1721233600975,0.00284,64494.0,64493.0,0.37251811]
[1721233601363,0.00284,64494.0,64493.0,0.83768411]
[1721233601780,0.00284,64494.0,64493.0,0.17251811]
[1721233603451,0.467999,64494.0,64493.0,0.17251811]
[1721233603666,0.00284,64494.0,64493.0,0.17251811]
[1721233603862,0.778105,64494.0,64493.0,0.17251811]
[1721233604067,1.088211,64494.0,64493.0,0.01813637]
[1721233604225,1.088211,64494.0,64493.0,0.001]
[1721233604426,0.778105,64494.0,64493.0,0.15538174]
[1721233605240,0.773105,64494.0,64493.0,0.15538174]
[1721233605434,1.083211,64494.0,64493.0,0.001]
[1721233606222,0.873105,64494.0,64493.0,0.001]
[1721233606641,1.183211,64494.0,64493.0,0.001]
[1721233607541,0.873105,64494.0,64493.0,0.001]
[1721233607730,0.873105,64494.0,64493.0,0.15438174]
[1721233607731,0.258053,64494.0,64493.0,0.15438174]
[1721233607874,0.258053,64494.0,64493.0,0.16981991]
[1721233607875,0.565159,64494.0,64493.0,0.16981991]
[1721233608075,0.883265,64494.0,64493.0,0.17081991]
[1721233608277,0.890265,64494.0,64493.0,0.17181991]
[1721233608476,0.890265,64494.0,64493.0,0.16981991]
[1721233608477,0.882265,64494.0,64493.0,0.16981991]
[1721233608876,0.889265,64494.0,64493.0,0.17081991]
[1721233609080,0.88887418,64494.0,64493.0,0.17081991]
[1721233609380,0.57876818,64494.0,64493.0,0.17081991]
[1721233609998,0.58176818,64494.0,64493.0,0.17081991]
[1721233612405,0.017,64494.0,64493.0,0.17081991]
[1721233612582,0.017,64494.0,64493.0,0.6390865]
[1721233612883,0.017,64494.0,64493.0,0.9491975]
[1721233613304,0.012,64494.0,64493.0,1.1491975]
[1721233613528,0.007,64494.0,64493.0,1.1491975]
[1721233613715,0.008,64494.0,64493.0,1.1631975]
[1721233613973,0.001,64494.0,64493.0,1.1621975]
[1721233614203,0.002,64494.0,64493.0,1.1721975]
[1721233614936,0.002,64494.0,64493.0,1.16909691]
[1721233615178,0.002,64494.0,64493.0,0.54887491]
[1721233615388,0.312106,64494.0,64493.0,0.19381991]
[1721233615609,0.157053,64494.0,64493.0,0.19381991]
[1721233615824,0.777265,64494.0,64493.0,0.024]
[1721233616019,1.187371,64494.0,64493.0,0.024]
[1721233616218,1.497477,64494.0,64493.0,0.024]
[1721233616595,1.76622083,64494.0,64493.0,0.01]
[1721233616813,0.15513,64462.0,64461.0,0.0609]
[1721233617023,0.15513,64462.0,64461.0,0.15438174]
[1721233617242,0.310254,64464.0,64461.0,0.15438174]
[1721233617414,0.410174,64480.0,64462.0,0.15438174]
[1721233617415,0.155117,64468.0,64462.0,0.15438174]
[1721233617616,0.310201,64475.0,64463.0,0.002794]
[1721233617617,0.155119,64467.0,64463.0,0.002794]
[1721233617771,0.46304871,64474.0,64464.0,0.22440981]
[1721233617982,0.465367,64465.0,64464.0,0.15438174]
[1721233618190,0.775612,64465.0,64464.0,0.15438174]
[1721233618628,0.155122,64465.0,64464.0,0.15438174]
[1721233618827,0.465367,64465.0,64464.0,0.15438174]
[1721233619091,0.775612,64465.0,64464.0,0.15438174]
[1721233619416,0.155122,64465.0,64464.0,0.17101991]
[1721233619619,0.005,64467.0,64464.0,0.17101991]
[1721233619837,0.005,64467.0,64465.0,0.15717574]
[1721233620046,0.005,64467.0,64465.0,0.15438174]
[1721233620247,0.002,64468.0,64466.0,0.002794]
[1721233620567,0.002,64468.0,64467.0,0.18727573]
[1721233620775,0.310202,64474.0,64467.0,0.18727573]
[1721233620776,0.155103,64474.0,64467.0,0.18727573]
[1721233620969,0.1,64480.0,64469.0,0.0645]
[1721233620970,0.310196,64476.0,64469.0,0.0645]
[1721233621167,0.31019,64477.0,64470.0,0.15717574]
[1721233621370,0.1,64480.0,64470.0,0.15717574]
[1721233621371,0.310195,64476.0,64471.0,0.04859887]
[1721233621702,0.310199,64475.0,64472.0,0.15717574]
[1721233621926,0.155103,64473.0,64472.0,0.15717574]
[1721233622176,0.620414,64473.0,64471.0,0.04859887]
[1721233622425,0.620414,64473.0,64457.0,0.0605]
[1721233622426,0.007,64477.0,64472.0,0.15438174]
[1721233622618,0.46531,64473.0,64472.0,0.15438174]
[1721233622958,0.155103,64473.0,64472.0,0.15438174]
[1721233623134,0.775517,64473.0,64472.0,0.15438174]
[1721233623339,0.775517,64473.0,64472.0,0.16991991]
[1721233623701,0.775612,64465.0,64464.0,0.000924]
[1721233623937,0.775612,64465.0,64464.0,0.15530574]
[1721233624864,0.777612,64465.0,64464.0,0.15530574]
[1721233625538,0.51304871,64488.0,64464.0,0.15730574]
[1721233625744,0.155116,64468.0,64465.0,0.15717574]
[1721233625945,0.310193,64476.0,64466.0,0.01600997]
[1721233625946,0.155118,64467.0,64466.0,0.01600997]
[1721233626215,0.155118,64467.0,64466.0,0.17039171]
[1721233626498,0.465354,64467.0,64466.0,0.17039171]
[1721233627205,0.77559,64467.0,64466.0,0.17039171]
[1721233627411,0.155118,64467.0,64466.0,0.17039171]
[1721233628221,0.465354,64467.0,64466.0,0.17139171]
[1721233628518,0.77959,64467.0,64466.0,0.17139171]
[1721233628865,0.77959,64467.0,64466.0,0.17439171]
[1721233628866,0.77559,64467.0,64466.0,0.17439171]
[1721233629263,0.77759,64467.0,64466.0,0.17439171]
[1721233629469,0.77759,64467.0,64466.0,0.15838174]
[1721233630710,0.002,64467.0,64466.0,0.15838174]
[1721233632893,0.155111,64470.0,64466.0,0.15838174]
[1721233633135,0.155111,64470.0,64467.0,0.15717574]
[1721233634643,0.005,64470.0,64468.0,0.0665]
[1721233634849,0.005,64470.0,64469.0,0.17963571]
[1721233635072,0.005,64470.0,64469.0,0.17684171]
[1721233635242,0.15507,64487.0,64479.0,0.155088]
[1721233635587,0.15507,64487.0,64480.0,0.20090924]
[1721233635793,0.00084,64494.0,64482.0,0.15508]
[1721233635794,0.155064,64490.0,64482.0,0.15508]
[1721233636003,0.310112,64493.0,64483.0,0.15438174]
[1721233636178,0.155067,64488.0,64483.0,0.15438174]
[1721233636378,0.00084,64494.0,64483.0,0.15438174]
[1721233636379,0.465231,64484.0,64483.0,0.15438174]
[1721233636587,1.085539,64484.0,64483.0,0.17447266]
[1721233638051,0.775385,64484.0,64483.0,0.17547266]
[1721233638255,0.009,64493.0,64483.0,0.25447266]
[1721233638523,0.00084,64494.0,64493.0,0.310111]
[1721233638758,0.00084,64494.0,64493.0,0.61954774]
[1721233638957,0.00084,64494.0,64493.0,0.73901401]
[1721233639132,0.00084,64494.0,64493.0,1.04912501]
[1721233639738,0.00984,64494.0,64493.0,1.05012501]
[1721233640157,0.00984,64494.0,64493.0,1.67034701]
[1721233640355,0.00837,64503.0,64502.0,0.975167]
[1721233640556,0.00837,64503.0,64502.0,1.67693211]
[1721233641084,0.00837,64503.0,64502.0,1.63020244]
[1721233641519,0.00837,64503.0,64502.0,1.76380244]
[1721233641726,0.00837,64503.0,64502.0,2.07386944]
[1721233641929,0.00837,64523.0,64517.0,0.154997]
[1721233642133,0.46304871,64518.0,64514.0,0.155004]
[1721233642331,0.154987,64522.0,64513.0,0.155005]
[1721233642557,0.00837,64523.0,64517.0,0.154995]
[1721233642725,0.00837,64523.0,64517.0,0.154996]
[1721233642910,0.07717479,64522.0,64514.0,0.136]
[1721233643107,0.07717479,64522.0,64506.0,0.310047]
[1721233643108,0.155011,64512.0,64503.0,0.002794]
[1721233643312,0.07717479,64507.0,64503.0,0.157824]
[1721233643752,0.07717479,64507.0,64503.0,0.002794]
[1721233643948,0.15501,64512.0,64503.0,0.002794]
[1721233644123,0.07717479,64515.0,64504.0,0.05854537]
[1721233644325,0.07717479,64515.0,64506.0,0.155023]
[1721233644528,0.155008,64513.0,64506.0,0.155023]
[1721233644735,0.155008,64513.0,64507.0,0.15438174]
[1721233645301,0.54223279,64508.0,64507.0,0.15438174]
[1721233645603,1.16231079,64508.0,64507.0,0.15438174]
[1721233645755,0.920032,64505.0,64504.0,0.008]
[1721233645956,1.230085,64505.0,64504.0,0.008]
[1721233646188,1.230085,64505.0,64490.0,0.002794]
[1721233646189,0.1449,64505.0,64490.0,0.002794]
[1721233646404,0.1449,64505.0,64492.0,0.002794]
[1721233646405,0.465166,64493.0,64492.0,0.002794]
[1721233646560,0.775277,64493.0,64492.0,0.17009931]
[1721233647743,0.775277,64493.0,64492.0,0.01571757]
[1721233647953,0.07717479,64498.0,64478.0,0.002794]
[1721233648167,0.155077,64484.0,64479.0,0.15438174]
[1721233648392,0.454955,64505.0,64483.0,0.15438174]
[1721233648608,0.454955,64505.0,64484.0,0.15717574]
[1721233648825,0.155058,64492.0,64484.0,0.31225174]
[1721233649050,0.454955,64505.0,64484.0,0.31225174]
[1721233649051,0.310084,64499.0,64486.0,0.29838174]
[1721233649344,0.12717479,64522.0,64486.0,0.29838174]
[1721233649345,0.310096,64497.0,64493.0,0.002794]
[1721233649541,0.465159,64494.0,64493.0,0.002794]
[1721233649756,0.465166,64493.0,64492.0,0.005]
[1721233649979,0.465166,64493.0,64492.0,0.15938174]
[1721233650208,0.775277,64493.0,64492.0,0.15938174]
[1721233650441,0.465166,64493.0,64492.0,0.17531991]
[1721233650678,0.775277,64493.0,64492.0,0.17531991]
[1721233651152,0.77477709,64493.0,64492.0,0.17531991]
[1721233651840,0.77477709,64493.0,64492.0,0.17031991]
[1721233652474,0.77477709,64493.0,64492.0,0.18331991]
[1721233652951,1.08488809,64493.0,64492.0,0.013]
[1721233653167,1.14548809,64493.0,64492.0,0.013]
[1721233653386,1.14548809,64493.0,64492.0,0.021]
[1721233653764,0.87477709,64493.0,64492.0,0.17538174]
[1721233653971,0.87477709,64493.0,64492.0,0.19291991]
[1721233654170,0.87560709,64493.0,64492.0,0.03853817]
[1721233654516,1.18571809,64493.0,64492.0,0.021]
[1721233654657,1.26581809,64493.0,64492.0,0.021]
[1721233654864,1.71392909,64493.0,64492.0,0.021]
[1721233655026,1.66392909,64493.0,64492.0,0.008]
[1721233655230,1.66392909,64493.0,64468.0,0.002794]
[1721233655231,0.15511,64470.0,64468.0,0.002794]
[1721233655455,0.465331,64470.0,64469.0,0.15438174]
[1721233655681,0.465331,64470.0,64469.0,0.17028301]
[1721233655914,0.15511,64470.0,64469.0,0.17028301]
[1721233656071,0.775552,64470.0,64469.0,0.17028301]
[1721233656521,0.465331,64470.0,64469.0,0.17028301]
[1721233657117,0.07717479,64491.0,64469.0,0.17028301]
[1721233657118,0.310149,64485.0,64469.0,0.17028301]
[1721233657315,0.1,64484.0,64470.0,0.0199136]
[1721233657553,0.465324,64471.0,64470.0,0.0199136]
[1721233657799,0.1,64484.0,64469.0,0.014]
[1721233657800,0.155101,64474.0,64469.0,0.014]
[1721233657978,0.155101,64474.0,64470.0,0.002794]
[1721233658177,0.155108,64471.0,64470.0,0.002794]
[1721233658580,0.15511,64470.0,64469.0,0.009]
[1721233658796,0.155115,64468.0,64467.0,0.000913]
[1721233658965,0.465346,64468.0,64467.0,0.15529474]
[1721233659190,1.085808,64468.0,64467.0,0.000913]
[1721233659404,0.05,64480.0,64467.0,0.000913]
[1721233659405,0.0603,64484.0,64468.0,0.0623]
[1721233659724,0.310092,64497.0,64472.0,0.002794]
[1721233659725,0.155089,64479.0,64472.0,0.002794]
[1721233659876,0.155089,64479.0,64473.0,0.00310174]
[1721233660075,0.155084,64481.0,64474.0,0.002794]
[1721233660322,0.155084,64481.0,64470.0,0.323219]
[1721233660323,0.31015,64485.0,64476.0,0.002794]
[1721233660501,0.155087,64480.0,64478.0,0.002794]
[1721233660720,0.155087,64480.0,64479.0,0.15438174]
[1721233660929,0.46526,64480.0,64479.0,0.15438174]
[1721233661273,0.465331,64470.0,64469.0,0.011794]
[1721233661492,1.161773,64470.0,64469.0,0.009]
[1721233661687,1.261773,64470.0,64469.0,0.009]
[1721233661891,1.085808,64468.0,64467.0,0.000913]
[1721233662368,1.185808,64468.0,64467.0,0.000913]
[1721233662569,0.875577,64468.0,64467.0,0.000913]
[1721233662772,1.185808,64468.0,64467.0,0.000913]
[1721233663622,1.496039,64468.0,64467.0,0.000913]
[1721233664270,1.185808,64468.0,64467.0,0.000913]
[1721233664502,1.496039,64468.0,64467.0,0.001913]
[1721233664874,1.496039,64468.0,64467.0,0.002913]
[1721233665071,1.500039,64468.0,64467.0,0.001913]
[1721233665489,1.504039,64468.0,64467.0,0.002913]
[1721233665707,1.504039,64468.0,64467.0,0.003913]
[1721233665910,0.883577,64468.0,64467.0,0.003913]
[1721233666310,1.193808,64468.0,64467.0,0.003913]
[1721233666608,0.783577,64468.0,64467.0,0.003913]
[1721233666894,0.008,64468.0,64467.0,0.31341274]
[1721233667099,0.008,64468.0,64467.0,0.22722261]
[1721233667300,0.007734,64468.0,64467.0,0.22722261]
[1721233667944,0.007734,64468.0,64467.0,0.38234061]
[1721233668160,0.007734,64468.0,64467.0,0.69257661]
[1721233668371,0.007734,64468.0,64467.0,1.00281261]
[1721233668781,0.155087,64480.0,64471.0,0.155108]
[1721233668988,0.155087,64480.0,64473.0,0.15438174]
[1721233669192,0.155085,64481.0,64474.0,0.081694]
[1721233669393,0.310155,64484.0,64475.0,0.15438174]
[1721233669600,0.155087,64480.0,64476.0,0.002794]
[1721233669805,0.15509,64479.0,64477.0,0.15438174]
[1721233669977,0.15509,64479.0,64478.0,0.02640157]
[1721233670183,0.155086,64480.0,64478.0,0.17798931]
[1721233670347,0.310155,64484.0,64479.0,0.15717574]
[1721233670560,0.155084,64482.0,64479.0,0.15717574]
[1721233670774,0.310155,64484.0,64479.0,0.15717574]
[1721233670973,0.155085,64481.0,64480.0,0.01807833]
[1721233671185,0.23797479,64496.0,64481.0,0.0611]
[1721233671186,0.155069,64488.0,64481.0,0.0611]
[1721233671391,0.07717479,64496.0,64482.0,0.15717574]
[1721233671621,0.155075,64485.0,64482.0,0.15717574]
[1721233671826,0.155077,64484.0,64482.0,0.15717574]
[1721233672052,0.31014,64487.0,64483.0,0.04150526]
[1721233672053,0.155075,64485.0,64483.0,0.04150526]
[1721233672254,0.155075,64485.0,64484.0,0.15717574]
[1721233672454,0.155075,64485.0,64484.0,0.15438174]
[1721233672642,0.465224,64485.0,64484.0,0.15438174]
[1721233672871,0.775373,64485.0,64484.0,0.15438174]
[1721233673072,0.775373,64485.0,64484.0,0.18008044]
[1721233673279,0.465224,64485.0,64484.0,0.18008044]
[1721233673479,0.775373,64485.0,64484.0,0.18008044]
[1721233673680,1.085522,64485.0,64484.0,0.18008044]
[1721233673917,0.05351218,64523.0,64484.0,0.18008044]
[1721233674133,0.00837,64532.0,64526.0,0.1408]
[1721233674349,0.00015,64551.0,64547.0,0.2]
[1721233674562,0.00015,64551.0,64548.0,0.0646]
[1721233674772,0.00015,64551.0,64539.0,0.0646]
[1721233675862,0.00015,64551.0,64539.0,0.0786]
[1721233676188,0.00015,64551.0,64539.0,0.0646]
[1721233676592,0.00015,64551.0,64539.0,0.0786]
[1721233676813,0.00015,64551.0,64539.0,0.0926]
[1721233677579,0.154942,64540.0,64539.0,0.028]
[1721233677784,0.154942,64540.0,64539.0,0.18238174]
[1721233677785,0.464827,64540.0,64539.0,0.18238174]
[1721233677985,0.464827,64540.0,64539.0,0.014]
[1721233677986,0.84430002,64540.0,64539.0,0.014]
[1721233678173,0.53441502,64540.0,64539.0,0.014]
[1721233678372,0.53441502,64540.0,64539.0,0.028]
[1721233678373,0.84430002,64540.0,64539.0,0.028]
[1721233678949,0.84430002,64540.0,64539.0,0.042]
[1721233679150,0.154964,64532.0,64522.0,0.002794]
[1721233679440,0.154964,64532.0,64524.0,0.002794]
[1721233679441,0.00696751,64531.0,64524.0,0.002794]
[1721233679645,0.00696751,64531.0,64523.0,0.23646521]
[1721233679646,0.309933,64530.0,64526.0,0.002794]
[1721233679794,0.309933,64530.0,64528.0,0.002794]
[1721233679795,0.154969,64529.0,64528.0,0.002794]
[1721233679996,0.47187451,64529.0,64528.0,0.17009931]
[1721233680395,0.00696751,64529.0,64528.0,0.17009931]
[1721233680668,0.154959,64533.0,64528.0,0.17009931]
[1721233680781,0.154961,64532.0,64529.0,0.15717574]
[1721233680982,0.154961,64532.0,64530.0,0.01728933]
[1721233681187,0.154961,64532.0,64531.0,0.15438174]
[1721233682495,0.464884,64532.0,64531.0,0.15438174]
[1721233682959,0.464884,64532.0,64531.0,0.16238174]
[1721233683405,0.774807,64532.0,64531.0,0.16238174]
[1721233683540,0.774807,64532.0,64531.0,0.18414885]
[1721233683746,1.08473,64532.0,64531.0,0.18414885]
[1721233683985,0.309923,64532.0,64531.0,0.18114885]
[1721233684194,0.309923,64532.0,64531.0,0.17314885]
[1721233684470,0.309923,64532.0,64531.0,0.17614885]
[1721233684636,0.154961,64532.0,64531.0,0.18414885]
[1721233684858,0.774807,64532.0,64531.0,0.18414885]
[1721233685214,0.774807,64532.0,64531.0,0.17614885]
[1721233685808,0.774807,64532.0,64531.0,0.17314885]
[1721233686008,1.08473,64532.0,64531.0,0.02176711]
[1721233686209,1.08473,64532.0,64531.0,0.003]
[1721233686931,1.08473,64532.0,64531.0,0.011]
[1721233687129,1.08473,64532.0,64531.0,0.008]
[1721233687539,1.08473,64532.0,64531.0,0.011]
[1721233688175,1.08556,64532.0,64531.0,0.011]
[1721233688777,0.774892,64525.0,64524.0,0.000913]
[1721233688949,0.774892,64525.0,64524.0,0.15529474]
[1721233689139,0.774892,64525.0,64524.0,0.17082421]
[1721233689608,1.084849,64525.0,64524.0,0.17082421]
[1721233690141,1.084849,64525.0,64524.0,0.18482421]
[1721233690599,0.309943,64528.0,64524.0,0.19582421]
[1721233690798,0.00083,64532.0,64525.0,0.15717574]
[1721233690799,0.154976,64526.0,64525.0,0.15717574]
[1721233691028,0.154976,64526.0,64525.0,0.15438174]
[1721233691218,0.47181908,64526.0,64525.0,0.15438174]
[1721233691455,1.09172308,64526.0,64525.0,0.15438174]
[1721233692689,0.78177108,64526.0,64525.0,0.15438174]
[1721233692893,0.78177108,64526.0,64525.0,0.17121121]
[1721233693060,1.09172308,64526.0,64525.0,0.18521121]
[1721233693481,1.09172308,64526.0,64525.0,0.16838174]
[1721233693688,1.09172308,64526.0,64525.0,0.014]
[1721233693898,1.46497508,64526.0,64525.0,0.014]
[1721233694092,1.92492708,64526.0,64525.0,0.014]
[1721233694322,1.941036,64526.0,64525.0,0.014]
[1721233694518,1.94784141,64526.0,64525.0,0.014]
[1721233695352,1.56488941,64526.0,64525.0,0.014]
[1721233695996,1.494784,64526.0,64525.0,0.014]
[1721233696371,1.494784,64526.0,64525.0,0.024]
[1721233697696,1.394806,64525.0,64524.0,0.000913]
[1721233697888,1.494806,64525.0,64524.0,0.000913]
[1721233699151,2.16872,64525.0,64524.0,0.000913]
[1721233699353,2.14172,64525.0,64524.0,0.000913]
[1721233699681,2.19172,64525.0,64524.0,0.001913]
[1721233701153,2.20745304,64525.0,64524.0,0.001913]
[1721233701398,2.15745304,64525.0,64524.0,0.001913]
[1721233702080,2.20745304,64525.0,64524.0,0.001913]
[1721233702333,2.15745304,64525.0,64524.0,0.001913]
[1721233702945,2.20745304,64525.0,64524.0,0.001913]
[1721233703099,2.20745304,64525.0,64501.0,0.002794]
[1721233703100,1.085234,64502.0,64501.0,0.002794]
[1721233703339,1.395301,64502.0,64501.0,0.002794]
[1721233703537,1.395301,64502.0,64487.0,0.0643]
[1721233703538,1.085472,64488.0,64487.0,0.0643]
[1721233703889,0.77536,64486.0,64485.0,0.01800804]
[1721233704088,1.085504,64486.0,64485.0,0.01800804]